bitfinex/quotes_ETHUSD_20241101
["timestamp","ask_amount","ask_price","bid_price","bid_amount"]
[1730480349573,3.96944,2519.3,2518.7,5.29903]
[1730480349774,3.96944,2519.3,2518.7,1.3288]
[1730480349979,3.46381685,2519.2,2518.7,5.29909]
[1730480350201,6.96944,2519.3,2518.8,3.97006]
[1730480350572,6.96944,2519.3,2518.7,5.29909]
[1730480350971,3.96951,2519.2,2518.8,3.97011]
[1730480351207,3.96951,2519.2,2518.7,5.29908]
[1730480351411,3.96951,2519.2,2518.7,5.75753696]
[1730480351628,3.96932,2519.4,2518.8,3.97008]
[1730480351915,4.4503,2519.7,2518.8,3.97008]
[1730480351916,4.4503,2519.7,2518.9,3.96998]
[1730480352081,3.9693,2519.4,2518.9,3.96998]
[1730480352276,1.4503,2519.7,2518.7,1.78725696]
[1730480352277,3.96976,2519.1,2518.7,1.78725696]
[1730480352684,3.96983,2519.0,2518.7,1.78725696]
[1730480353635,7.93943,2519.1,2518.7,1.78725696]
[1730480353809,3.96967,2519.1,2518.7,1.78725696]
[1730480354129,3.96967,2519.1,2518.7,5.75754696]
[1730480354635,3.96948,2519.3,2518.4,1.4192]
[1730480354835,1.4413,2519.9,2519.2,1.4192]
[1730480355056,3.96819,2520.1,2519.4,3.96917]
[1730480355337,3.96866,2519.8,2519.3,3.96935]
[1730480355544,3.96882,2519.7,2519.2,5.38869]
[1730480356152,3.96882,2519.7,2519.2,5.38861]
[1730480356844,3.96841,2519.9,2519.2,5.38861]
[1730480356845,3.96864,2519.8,2519.3,3.96927]
[1730480357217,3.96841,2519.9,2519.3,3.96927]
[1730480357218,3.96848,2519.9,2519.4,3.96919]
[1730480357740,3.9686,2519.8,2519.3,7.93854]
[1730480357942,3.9686,2519.8,2519.3,8.874314]
[1730480358648,3.9686,2519.8,2519.4,3.96917]
[1730480359029,3.9686,2519.8,2519.3,0.935774]
[1730480359229,3.96877,2519.7,2519.3,4.905044]
[1730480359401,3.96898,2519.6,2519.2,1.4192]
[1730480359805,5.36532,2519.7,2519.2,5.38862]
[1730480360206,3.96865,2519.8,2519.3,3.96933]
[1730480360441,3.96875,2519.7,2519.3,3.96933]
[1730480360852,3.96888,2519.6,2519.2,5.38869]
[1730480361269,3.96888,2519.6,2519.2,1.4192]
[1730480361424,3.96874,2519.7,2519.2,5.38864]
[1730480362224,3.96867,2519.8,2519.2,5.38871]
[1730480362225,3.96889,2519.6,2519.2,5.38871]
[1730480362919,3.96874,2519.7,2519.2,5.38871]
[1730480363114,3.96897,2519.6,2519.2,5.38871]
[1730480364062,7.93761,2519.7,2519.2,5.38871]
[1730480364233,3.96947,2519.3,2518.9,1.4417]
[1730480364435,3.96943,2519.3,2518.9,1.4417]
[1730480364627,3.96943,2519.3,2518.9,5.41163]
[1730480366048,3.96958,2519.2,2518.9,1.4417]
[1730480366349,3.96919,2519.4,2518.9,5.41165]
[1730480366754,3.96916,2519.5,2519.0,3.96982]
[1730480366917,3.96912,2519.5,2519.0,3.96982]
[1730480367122,3.96912,2519.5,2519.0,7.93958]
[1730480367560,3.96912,2519.5,2519.0,3.96976]
[1730480367764,7.93825,2519.5,2519.0,3.96976]
[1730480367962,3.96912,2519.5,2519.0,3.96976]
[1730480368171,3.96921,2519.4,2519.0,3.96976]
[1730480368663,3.96921,2519.4,2518.9,6.349847]
[1730480368868,3.96936,2519.3,2518.9,6.349847]
[1730480369055,3.96912,2519.5,2519.0,3.96982]
[1730480369056,3.9693,2519.4,2519.0,3.96982]
[1730480369263,3.96889,2519.6,2519.0,0.44961896]
[1730480369436,3.96907,2519.5,2519.1,3.96957]
[1730480369772,7.93787,2519.6,2519.2,1.4107]
[1730480370070,3.96905,2519.5,2519.2,1.4107]
[1730480370873,3.96907,2519.5,2519.2,1.4107]
[1730480371931,3.96879,2519.7,2519.2,5.38021]
[1730480372133,3.96856,2519.9,2519.2,2.345685]
[1730480372339,3.96879,2519.7,2519.2,6.315045]
[1730480372772,3.96879,2519.7,2519.3,3.96933]
[1730480373069,1.4085,2520.0,2519.2,2.345685]
[1730480373070,3.96889,2519.6,2519.2,2.345685]
[1730480373242,3.96889,2519.6,2519.2,5.38012]
[1730480373633,3.96881,2519.7,2519.2,5.38011]
[1730480374554,3.96889,2519.6,2519.2,5.38011]
[1730480374938,3.96881,2519.7,2519.2,5.38009]
[1730480375152,3.96888,2519.6,2519.2,5.38009]
[1730480375565,3.96881,2519.7,2519.2,5.38009]
[1730480375879,7.93765,2519.7,2519.2,5.38009]
[1730480376040,3.96881,2519.7,2519.2,5.38009]
[1730480376233,3.96881,2519.7,2519.3,3.96931]
[1730480376541,3.96889,2519.6,2519.2,5.38009]
[1730480376759,3.96881,2519.7,2519.2,5.38009]
[1730480376962,7.93762,2519.7,2519.2,5.38009]
[1730480377372,3.96881,2519.7,2519.2,9.3495]
[1730480377669,3.96893,2519.6,2519.2,5.38009]
[1730480378558,3.96907,2519.5,2519.2,1.4107]
[1730480378764,3.96914,2519.5,2519.0,3.96976]
[1730480378969,0.793774,2519.6,2518.8,1.3739]
[1730480379276,3.96944,2519.3,2518.8,1.3739]
[1730480379576,3.96968,2519.1,2518.8,1.3739]
[1730480380145,3.96954,2519.2,2518.8,5.34403]
[1730480380468,3.96954,2519.2,2518.8,3.97013]
[1730480380971,7.9389,2519.3,2518.8,3.97003]
[1730480381383,3.9696,2519.2,2518.8,3.97003]
[1730480382168,3.96944,2519.3,2518.8,3.97003]
[1730480382368,3.96952,2519.2,2518.8,3.97003]
[1730480382735,3.96944,2519.3,2518.9,5.32576]
[1730480382984,3.96944,2519.3,2518.9,5.40515051]
[1730480383343,3.96944,2519.3,2518.9,5.32576]
[1730480383885,6.96917,2519.5,2519.0,3.96968]
[1730480384088,7.02791685,2519.7,2518.9,5.32576]
[1730480384089,5.62000685,2519.7,2519.1,4.04900672]
[1730480384313,2.06975522,2519.9,2519.3,5.32508]
[1730480384314,3.96864,2519.8,2519.3,5.32508]
[1730480384593,3.96873,2519.7,2519.3,1.3558]
[1730480384772,3.96891,2519.6,2519.3,1.3558]
[1730480385881,3.96858,2519.8,2519.3,5.32515]
[1730480386082,7.93723,2519.8,2519.4,3.96918]
[1730480386292,3.96858,2519.8,2519.4,3.96918]
[1730480387695,3.96873,2519.7,2519.3,5.40450852]
[1730480387991,3.96873,2519.7,2519.3,6.38239044]
[1730480388193,3.96873,2519.7,2519.3,6.30301192]
[1730480389375,7.93754,2519.7,2519.3,6.30301192]
[1730480389696,3.96873,2519.7,2519.3,6.30301192]
[1730480390204,1.65118685,2520.0,2519.3,2.41306045]
[1730480390355,5.61935685,2520.1,2519.6,5.35385]
[1730480390570,5.61954685,2520.0,2519.6,5.35385]
[1730480391170,5.61954685,2520.0,2519.6,1.3851]
[1730480391171,3.96851,2519.9,2519.6,1.3851]
[1730480391421,3.96895,2519.6,2519.1,3.96956]
[1730480391764,3.96905,2519.5,2519.1,3.96956]
[1730480391870,5.61985685,2519.8,2519.1,3.96956]
[1730480392067,3.96884,2519.7,2519.2,3.96949]
[1730480392916,3.96884,2519.7,2519.3,5.37873]
[1730480393720,5.61966685,2519.9,2519.5,3.96902]
[1730480394016,1.65118685,2519.9,2519.6,3.96887]
[1730480394214,6.04609505,2520.0,2519.3,2.344222]
[1730480394215,1.65118685,2520.0,2519.7,1.3257]
[1730480394415,2.07776505,2520.1,2519.8,3.96854]
[1730480394416,1.65118685,2520.1,2519.8,3.96854]
[1730480394776,1.65118685,2520.1,2519.7,1.3257]
[1730480394777,5.61940685,2520.1,2519.7,1.3257]
[1730480395019,5.61946685,2520.0,2519.7,1.3257]
[1730480395177,5.21356793,2519.9,2519.5,5.38611]
[1730480395516,5.21385793,2519.7,2519.5,1.4171]
[1730480396015,5.21385793,2519.7,2519.3,3.96932]
[1730480396016,5.21385793,2519.7,2519.3,1.4417]
[1730480396221,3.96896,2519.6,2519.3,1.4417]
[1730480396405,5.21397793,2519.6,2519.3,1.4417]
[1730480397284,1.24501793,2519.5,2519.3,1.4417]
[1730480397993,1.24501793,2519.5,2519.0,23.73968]
[1730480398191,5.21438793,2519.3,2519.0,21.1911]
[1730480398423,5.21438793,2519.3,2519.0,19.77]
[1730480398623,3.96965,2519.2,2518.9,0.41268055]
[1730480398783,3.96965,2519.2,2518.8,5.39122]
[1730480398784,1.24501793,2519.1,2518.8,5.39122]
[1730480399186,3.96937,2519.3,2518.8,5.39122]
[1730480399391,3.96954,2519.2,2518.8,5.39122]
[1730480399726,1.65118685,2519.3,2518.8,5.39122]
[1730480399881,3.96938,2519.3,2518.8,5.39122]
[1730480400085,5.62056685,2519.3,2518.8,5.39122]
[1730480400286,5.62056685,2519.3,2518.8,1.4211]
[1730480400503,5.62060685,2519.3,2518.8,5.39116]
[1730480401086,1.65118685,2519.3,2519.2,3.96951]
[1730480401285,1.65118685,2519.6,2519.2,3.96951]
[1730480401487,1.65118685,2519.8,2519.4,3.96919]
[1730480401686,3.96866,2519.8,2519.3,5.38363]
[1730480401922,3.96856,2519.8,2519.3,5.38363]
[1730480402120,3.96856,2519.8,2519.4,3.96918]
[1730480402358,3.96856,2519.8,2519.3,1.4143]
[1730480402359,6.78601284,2519.8,2519.3,1.4143]
[1730480402530,5.61974685,2519.8,2519.3,1.4143]
[1730480402867,3.96879,2519.7,2519.3,1.4143]
[1730480403158,3.96897,2519.6,2519.3,1.4143]
[1730480403456,3.96897,2519.6,2519.0,1.4193]
[1730480403457,3.96928,2519.4,2519.0,1.4193]
[1730480403663,1.65118685,2519.6,2519.0,1.4193]
[1730480403954,1.65118685,2519.6,2519.2,3.9695]
[1730480404157,3.96889,2519.6,2519.2,3.9695]
[1730480405454,3.96889,2519.6,2519.0,5.38899]
[1730480405686,3.96889,2519.6,2519.1,3.96966]
[1730480405950,1.65118685,2519.9,2519.4,1.3427]
[1730480406157,1.65118685,2520.2,2519.8,5.31126]
[1730480406390,1.65118685,2520.3,2520.2,3.96793]
[1730480406693,1.65118685,2520.6,2520.3,5.31037]
[1730480406858,1.65118685,2520.7,2520.3,5.31037]
[1730480407063,1.65118685,2520.7,2520.3,1.3427]
[1730480407258,5.61819685,2520.8,2520.3,9.27801]
[1730480407680,5.61824685,2520.8,2520.3,5.31032]
[1730480407865,5.61824685,2520.8,2519.8,1.4275]
[1730480407866,3.96774,2520.4,2519.8,1.4275]
[1730480408063,3.96792,2520.3,2519.8,5.39598]
[1730480408314,3.96833,2520.0,2519.8,1.4275]
[1730480408601,3.96833,2520.0,2519.5,3.96903]
[1730480408602,5.39005,2520.2,2519.6,3.96886]
[1730480408766,2.07021381,2520.4,2519.9,3.9684]
[1730480408767,5.61890685,2520.4,2519.9,3.9684]
[1730480408967,1.65118685,2520.5,2520.2,3.96781]
[1730480409307,3.96722,2520.7,2520.2,3.96781]
[1730480409476,6.78379792,2520.8,2520.3,3.96774]
[1730480409791,10.75087792,2520.8,2520.3,3.96774]
[1730480410101,2.81672792,2520.8,2520.1,3.96795]
[1730480410254,3.96722,2520.7,2520.2,3.96785]
[1730480410449,3.96731,2520.6,2520.2,3.96785]
[1730480410653,7.93447,2520.7,2520.2,3.96785]
[1730480410894,3.96733,2520.6,2520.2,3.96785]
[1730480411363,3.96716,2520.7,2520.2,7.93568]
[1730480411888,7.03993685,2521.0,2520.0,5.39565]
[1730480412091,3.96807,2520.2,2519.7,1.4122]
[1730480412305,1.4173,2520.5,2519.7,1.4122]
[1730480412306,3.96818,2520.1,2519.7,1.4122]
[1730480412603,3.96818,2520.1,2519.5,19.77]
[1730480412604,3.96845,2519.9,2519.5,19.77]
[1730480412757,3.96845,2519.9,2519.4,5.39998]
[1730480413102,3.96845,2519.9,2519.5,3.96902]
[1730480413465,3.96819,2520.1,2519.5,3.96902]
[1730480413802,7.93639,2520.1,2519.5,3.96891]
[1730480414299,3.96826,2520.0,2519.4,6.336916]
[1730480414598,3.96842,2519.9,2519.4,6.336916]
[1730480414775,3.96842,2519.9,2519.4,10.306026]
[1730480414970,1.3617,2520.0,2519.4,1.4309]
[1730480415168,3.96841,2519.9,2519.4,5.40009]
[1730480415371,3.96858,2519.8,2519.4,5.40009]
[1730480415559,5.33,2520.0,2519.2,1.3883]
[1730480415785,7.93712,2519.8,2519.2,1.3883]
[1730480416099,7.93712,2519.8,2518.8,23.74002]
[1730480416100,3.96951,2519.2,2518.7,1.4255]
[1730480416306,3.96969,2519.1,2518.7,1.4255]
[1730480416863,3.96969,2519.1,2518.7,5.39578]
[1730480417199,3.96969,2519.1,2518.7,1.4255]
[1730480417759,3.96969,2519.1,2518.7,5.39579]
[1730480417960,3.96951,2519.2,2518.7,5.47518798]
[1730480418165,3.96951,2519.2,2518.7,6.46097139]
[1730480418366,3.96953,2519.2,2518.7,6.38157341]
[1730480418592,3.96935,2519.3,2518.8,3.97012]
[1730480418777,3.96908,2519.5,2518.9,3.96988]
[1730480418968,8.61991685,2519.7,2519.2,3.96943]
[1730480419170,3.0,2519.7,2519.1,5.40394]
[1730480419478,6.02927443,2520.0,2519.1,1.83629255]
[1730480419479,5.61950685,2520.0,2519.1,1.83629255]
[1730480419704,3.96825,2520.0,2519.1,1.83629255]
[1730480420008,3.96842,2519.9,2519.4,3.96907]
[1730480420372,3.96867,2519.8,2519.3,3.96935]
[1730480420781,3.96843,2519.9,2519.3,3.96925]
[1730480420991,3.96843,2519.9,2519.4,3.96911]
[1730480421577,7.00381685,2520.1,2519.4,3.96911]
[1730480421578,5.35257,2520.1,2519.6,1.4343]
[1730480422076,3.96834,2520.0,2519.4,3.96917]
[1730480422308,3.9688,2519.7,2519.3,1.4343]
[1730480422777,3.96857,2519.8,2519.4,3.96918]
[1730480423192,3.96857,2519.8,2519.3,5.48300881]
[1730480423423,3.0,2520.0,2519.4,3.96916]
[1730480423616,3.96841,2519.9,2519.4,3.96916]
[1730480423777,3.96841,2519.9,2519.4,4.906445]
[1730480423977,3.96859,2519.8,2519.4,0.937285]
[1730480424211,3.96859,2519.8,2519.3,5.40363]
[1730480424870,3.96859,2519.8,2519.4,3.96915]
[1730480425292,6.96828,2520.0,2519.4,3.96915]
[1730480425489,3.96843,2519.9,2519.4,3.96915]
[1730480425899,6.96828,2520.0,2519.6,3.96886]
[1730480426107,5.61925685,2520.2,2519.6,4.365746]
[1730480426274,3.96826,2520.0,2519.6,4.365766]
[1730480426603,3.96811,2520.1,2519.7,3.9687]
[1730480426822,3.96811,2520.1,2519.6,0.396886]
[1730480426823,3.96816,2520.1,2519.6,4.365606]
[1730480427107,3.96816,2520.1,2519.7,0.4365606]
[1730480427333,3.96827,2520.0,2519.7,0.4365606]
[1730480429290,3.96795,2520.2,2519.7,0.4365606]
[1730480429291,5.61913685,2520.2,2519.7,0.4365606]
[1730480429518,3.96821,2520.1,2519.7,0.4365606]
[1730480430529,3.96826,2520.0,2519.7,0.4365606]
[1730480430729,3.96826,2520.0,2519.0,5.3113]
[1730480430730,1.4174,2519.8,2519.0,5.3113]
[1730480430960,1.4174,2519.8,2518.9,0.41265508]
[1730480430961,7.93892,2519.3,2518.9,0.41265508]
[1730480431230,3.96959,2519.2,2518.8,1.4192]
[1730480431630,3.96968,2519.1,2518.8,1.4192]
[1730480431797,3.96993,2519.0,2518.6,4.38294699]
[1730480432000,3.96968,2519.1,2518.6,3.9703]
[1730480432307,7.93944,2519.1,2518.6,3.9703]
[1730480432518,7.93944,2519.1,2518.5,1.48823219]
[1730480432696,3.96968,2519.1,2518.5,1.4192]
[1730480432899,7.93943,2519.1,2518.5,1.83181926]
[1730480433201,3.96968,2519.1,2518.5,1.83181926]
[1730480433402,3.97,2518.9,2518.5,1.83181926]
[1730480433589,3.96968,2519.1,2518.5,1.4192]
[1730480433794,7.93949,2519.1,2518.5,1.4192]
[1730480434314,3.96968,2519.1,2518.5,1.4192]
[1730480434992,3.96983,2519.0,2518.5,1.4192]
[1730480436091,3.96971,2519.1,2518.5,1.4192]
[1730480436298,7.93952,2519.1,2518.5,1.4192]
[1730480436861,3.96971,2519.1,2518.5,1.4192]
[1730480437000,7.93946,2519.1,2518.5,1.4192]
[1730480437420,3.96985,2519.0,2518.5,1.4192]
[1730480437796,3.97001,2518.9,2518.5,1.4192]
[1730480438220,3.96971,2519.1,2518.5,1.4192]
[1730480438426,5.38556,2519.3,2518.5,1.4192]
[1730480438745,3.9698,2519.1,2518.5,1.4192]
[1730480439095,3.96935,2519.3,2518.5,1.4192]
[1730480439321,3.97008,2518.9,2518.5,1.4192]
[1730480439702,1.3872,2519.0,2518.5,1.4192]
[1730480439903,3.97045,2518.7,2518.2,1.4153]
[1730480440824,4.764501,2518.7,2518.2,1.4153]
[1730480441015,5.31448,2518.6,2518.1,0.4127649]
[1730480441213,3.97073,2518.5,2518.0,1.3883]
[1730480441740,6.97024,2518.8,2518.1,0.07941988]
[1730480442036,3.97037,2518.7,2518.1,0.07941988]
[1730480442244,3.97047,2518.6,2518.0,1.3883]
[1730480442535,3.9707,2518.5,2518.0,1.3883]
[1730480442780,3.97089,2518.4,2518.0,1.3883]
[1730480443477,3.9707,2518.5,2518.0,1.3883]
[1730480444268,3.97039,2518.7,2518.1,0.07941941]
[1730480444480,3.97039,2518.7,2518.1,4.05057941]
[1730480444766,3.97047,2518.6,2518.1,4.51504794]
[1730480445728,3.97047,2518.6,2518.1,0.54388794]
[1730480445964,3.97071,2518.5,2518.0,1.3883]
[1730480446150,3.97095,2518.3,2517.8,5.40143]
[1730480446359,1.3899,2518.4,2517.8,1.4298]
[1730480446670,3.97095,2518.3,2517.8,5.48092593]
[1730480446884,5.3604,2518.6,2517.9,4.958017]
[1730480447261,3.9707,2518.5,2518.0,4.05081057]
[1730480447462,3.97046,2518.6,2518.0,4.05071962]
[1730480447665,6.97043,2518.7,2518.1,5.40097]
[1730480447868,3.96995,2519.0,2518.4,1.4298]
[1730480448069,3.97,2518.9,2518.4,5.40056]
[1730480448548,3.96998,2518.9,2518.4,1.4298]
[1730480448866,3.96962,2519.2,2518.5,4.04998984]
[1730480449043,7.01018685,2519.5,2518.5,4.04998984]
[1730480449044,3.96946,2519.3,2518.6,1.4298]
[1730480449242,3.96946,2519.3,2518.7,4.04958435]
[1730480449444,3.96946,2519.3,2518.8,0.40123896]
[1730480449851,3.96946,2519.3,2518.8,4.37136896]
[1730480450049,3.96946,2519.3,2518.9,1.3545]
[1730480450249,3.96931,2519.4,2518.9,1.3545]
[1730480450772,3.96942,2519.3,2518.9,1.3545]
[1730480451472,3.96942,2519.3,2518.9,2.3240849]
[1730480451660,3.96888,2519.6,2518.9,1.3545]
[1730480451877,3.96959,2519.2,2518.9,1.3545]
[1730480453477,1.3949,2519.7,2518.9,1.3545]
[1730480453478,3.96944,2519.3,2518.9,1.3545]
[1730480453654,3.96971,2519.1,2518.9,1.3545]
[1730480453864,4.4505,2519.4,2518.1,20.18289301]
[1730480454056,3.97051,2518.6,2518.2,1.3959]
[1730480454426,1.4505,2518.9,2518.2,1.3959]
[1730480454427,3.97088,2518.4,2518.2,1.3959]
[1730480454586,5.13919902,2518.9,2518.1,0.41289301]
[1730480454587,3.97075,2518.5,2518.1,0.41289301]
[1730480454743,3.97043,2518.7,2518.2,5.36692]
[1730480454942,3.97042,2518.7,2518.2,5.36692]
[1730480455980,7.94084,2518.7,2518.2,5.36692]
[1730480456645,3.97073,2518.5,2518.2,1.3959]
[1730480457053,3.97085,2518.4,2518.2,1.3959]
[1730480458489,3.97061,2518.5,2518.2,1.3959]
[1730480458694,7.94131,2518.5,2518.2,1.3959]
[1730480458884,3.97078,2518.4,2517.9,5.79051796]
[1730480459088,3.97078,2518.4,2517.9,5.37753]
[1730480459255,3.97101,2518.3,2517.9,1.406]
[1730480459592,3.97078,2518.4,2517.9,5.37754]
[1730480460161,3.96999,2518.9,2518.0,7.73940933]
[1730480460356,3.96976,2519.1,2518.6,5.34677]
[1730480460573,1.3261,2519.2,2518.7,3.97022]
[1730480460574,3.96954,2519.2,2518.7,3.97022]
[1730480460805,7.93884,2519.3,2518.8,3.97006]
[1730480461090,3.96916,2519.5,2519.0,3.96982]
[1730480461393,3.96891,2519.6,2518.9,1.3764]
[1730480461394,3.96929,2519.4,2518.9,1.3764]
[1730480461574,3.96952,2519.2,2518.9,1.3764]
[1730480461951,3.96972,2519.1,2518.9,1.3764]
[1730480462162,3.96948,2519.3,2518.9,1.3764]
[1730480462403,3.96943,2519.3,2518.9,1.3764]
[1730480463204,3.9696,2519.2,2518.9,1.3764]
[1730480463558,3.0,2519.5,2518.9,1.3764]
[1730480463903,3.96935,2519.3,2518.9,1.3764]
[1730480464988,3.9689,2519.6,2519.1,3.96958]
[1730480465303,3.96884,2519.7,2519.1,3.96958]
[1730480465304,3.9688,2519.7,2519.2,5.37334]
[1730480465601,3.96895,2519.6,2519.2,1.4039]
[1730480466109,3.9688,2519.7,2519.2,1.4039]
[1730480466310,3.96913,2519.5,2519.2,1.4039]
[1730480467816,4.53083869,2519.7,2519.2,1.4039]
[1730480467817,3.96884,2519.7,2519.2,1.4039]
[1730480467981,3.96884,2519.7,2519.3,3.96934]
[1730480468180,3.96884,2519.7,2519.2,1.4039]
[1730480468181,3.96889,2519.6,2519.2,1.4039]
[1730480468386,4.65118685,2519.9,2519.2,1.4039]
[1730480468599,3.96913,2519.5,2519.2,1.4039]
[1730480469289,3.96864,2519.8,2519.4,3.96919]
[1730480469486,6.45622869,2520.2,2519.5,0.07937913]
[1730480469487,3.72476076,2520.2,2519.5,0.07937913]
[1730480469680,5.61894685,2520.4,2519.8,3.96846]
[1730480469883,7.93548,2520.4,2519.9,5.35956]
[1730480470125,1.09340669,2520.4,2520.0,1.3912]
[1730480470279,3.96841,2519.9,2519.8,1.3912]
[1730480470481,8.76085978,2520.5,2519.5,1.3912]
[1730480470482,1.65118685,2520.3,2519.5,1.3912]
[1730480470702,6.04121391,2520.4,2519.2,1.3912]
[1730480470703,1.65118685,2520.0,2519.2,1.3912]
[1730480470923,3.9692,2519.4,2518.9,1.3912]
[1730480471125,3.9689,2519.6,2518.9,1.3912]
[1730480471288,1.65118685,2519.8,2518.9,1.3912]
[1730480471289,3.96967,2519.1,2518.9,1.3912]
[1730480471900,7.93943,2519.1,2518.9,1.3912]
[1730480472108,3.96967,2519.1,2518.9,1.3912]
[1730480473251,1.65118685,2519.7,2519.0,0.07939756]
[1730480473396,1.65118685,2519.9,2519.5,3.96897]
[1730480473592,3.96831,2520.0,2519.5,3.96897]
[1730480473939,3.96831,2520.0,2519.4,3.96911]
[1730480473940,1.65118685,2520.3,2519.8,3.96855]
[1730480474227,3.9679,2520.3,2519.8,3.96856]
[1730480474392,3.9681,2520.1,2519.7,3.96871]
[1730480474592,3.96808,2520.2,2519.7,0.77394093]
[1730480474817,3.96808,2520.2,2519.7,4.74265093]
[1730480474994,3.96791,2520.3,2519.8,1.40566579]
[1730480475193,3.96772,2520.4,2519.9,3.96831]
[1730480475494,3.96771,2520.4,2519.9,3.96831]
[1730480476249,3.96779,2520.3,2519.5,1.4099]
[1730480476529,3.96818,2520.1,2519.6,3.9688]
[1730480477037,3.96837,2520.0,2519.5,9.34787]
[1730480477225,3.96841,2519.9,2519.5,5.37885]
[1730480478026,3.96818,2520.1,2519.5,5.37885]
[1730480478239,3.96843,2519.9,2519.5,5.37885]
[1730480478541,3.9682,2520.1,2519.5,5.37884]
[1730480478727,3.9682,2520.1,2519.6,3.96885]
[1730480479047,3.96795,2520.2,2519.7,3.9686]
[1730480480147,3.96775,2520.4,2519.6,3.96888]
[1730480480436,3.96771,2520.4,2519.9,5.32564]
[1730480480636,3.96771,2520.4,2519.9,1.89780005]
[1730480480845,3.96786,2520.3,2519.9,1.3573]
[1730480481206,3.96786,2520.3,2519.7,3.96863]
[1730480481207,3.96797,2520.2,2519.7,5.39551]
[1730480481411,3.96866,2519.8,2519.4,1.4268]
[1730480481668,1.3455,2520.4,2519.4,1.4268]
[1730480481848,3.96841,2519.9,2519.5,3.96903]
[1730480482029,3.96826,2520.0,2519.5,3.96903]
[1730480482362,7.93664,2520.0,2519.5,3.96903]
[1730480482525,3.96841,2519.9,2519.5,3.96903]
[1730480483247,3.96826,2520.0,2519.4,5.39598]
[1730480483545,3.96848,2519.9,2519.4,5.39598]
[1730480483749,3.96841,2519.9,2519.4,5.39598]
[1730480483951,3.96843,2519.9,2519.4,5.39593]
[1730480484116,3.96859,2519.8,2519.4,6.332446]
[1730480484515,3.96843,2519.9,2519.5,3.96902]
[1730480484720,0.59966868,2520.3,2519.4,1.4268]
[1730480485034,3.96904,2519.5,2519.1,1.4448]
[1730480485254,1.342,2519.8,2519.1,1.4448]
[1730480485413,3.96965,2519.2,2518.8,1.3363]
[1730480485753,3.96942,2519.3,2518.8,5.30635]
[1730480485964,3.96953,2519.2,2518.8,5.30635]
[1730480486329,3.96968,2519.1,2518.8,1.3363]
[1730480486657,3.96953,2519.2,2518.8,1.3363]
[1730480487030,3.96969,2519.1,2518.8,1.3363]
[1730480487545,3.96953,2519.2,2518.8,1.3363]
[1730480487747,7.93914,2519.2,2518.8,1.3363]
[1730480488063,3.96926,2519.4,2518.8,5.30644]
[1730480488285,3.96942,2519.3,2518.8,5.30644]
[1730480488430,3.96965,2519.2,2518.8,1.3363]
[1730480488637,7.9393,2519.2,2518.8,1.3363]
[1730480488944,7.9393,2519.2,2518.8,2.30527073]
[1730480489145,3.96973,2519.1,2518.8,1.3363]
[1730480489872,3.96927,2519.4,2518.8,5.38577604]
[1730480490094,3.9696,2519.2,2518.8,5.30643]
[1730480491072,3.9696,2519.2,2518.8,1.3363]
[1730480491381,3.9696,2519.2,2518.8,5.30636]
[1730480491733,3.96931,2519.4,2519.0,3.96978]
[1730480492022,3.96931,2519.4,2518.9,3.9699]
[1730480492736,3.96898,2519.6,2519.0,3.9698]
[1730480492932,3.9692,2519.4,2519.0,3.9698]
[1730480493136,3.96935,2519.3,2518.8,6.27530986]
[1730480493340,3.96935,2519.3,2518.9,4.3888161]
[1730480493584,3.96935,2519.3,2518.9,4.46820724]
[1730480493941,3.9692,2519.4,2518.9,4.46820724]
[1730480494175,3.96937,2519.3,2518.9,4.3888161]
[1730480494382,3.96937,2519.3,2518.9,0.4188561]
[1730480494588,3.96937,2519.3,2518.9,0.49824727]
[1730480494799,3.96937,2519.3,2518.9,0.07939117]
[1730480495147,4.56805868,2519.7,2518.8,5.30636]
[1730480495148,3.96899,2519.6,2519.1,3.9696]
[1730480495577,7.93798,2519.6,2519.2,1.3734]
[1730480495813,3.96905,2519.5,2519.2,1.3734]
[1730480496495,3.0,2519.7,2519.0,1.4545]
[1730480496699,3.96906,2519.5,2519.0,5.42421]
[1730480496867,3.96906,2519.5,2519.1,3.96965]
[1730480497480,1.342,2519.8,2519.0,1.4545]
[1730480497481,3.96948,2519.3,2519.0,1.4545]
[1730480497881,3.96952,2519.2,2519.0,1.4545]
[1730480498301,3.96948,2519.3,2518.8,1.4545]
[1730480498462,3.96954,2519.2,2518.8,1.4545]
[1730480498828,3.96982,2519.0,2518.4,25.19521]
[1730480499105,3.97007,2518.9,2518.4,25.19519]
[1730480499258,3.97007,2518.9,2518.5,3.97055]
[1730480499897,3.96958,2519.2,2518.5,1.4545]
[1730480500115,3.96944,2519.3,2518.4,19.77]
[1730480500116,3.96944,2519.3,2518.8,3.97004]
[1730480500657,7.93834,2519.5,2518.9,3.96998]
[1730480500869,3.96884,2519.7,2519.2,3.96942]
[1730480501176,3.96899,2519.6,2519.1,3.96964]
[1730480501574,3.96875,2519.7,2519.0,5.32558]
[1730480501898,3.96895,2519.6,2519.1,3.96958]
[1730480502199,3.96933,2519.4,2519.0,1.3559]
[1730480502399,7.93864,2519.4,2519.0,1.3559]
[1730480502567,3.96946,2519.3,2519.0,1.3559]
[1730480502916,3.96931,2519.4,2518.8,23.74008]
[1730480502917,3.96979,2519.1,2518.8,19.77]
[1730480503466,1.3573,2519.4,2518.7,1.378]
[1730480503662,3.96967,2519.1,2518.7,5.3483]
[1730480504102,3.96967,2519.1,2518.7,5.34822]
[1730480504658,3.96913,2519.5,2519.0,3.96976]
[1730480504909,3.96935,2519.3,2518.9,5.34784]
[1730480505081,3.96935,2519.3,2518.9,1.378]